{"text_format":"1","workbook":"xlsx","n_sheets":2,"sheets":["Sheet1","Sheet2"],"not_rendered":{"charts":0,"images":0,"macros":0,"external_links":0,"defined_names":0,"comments":0,"pivot_tables":0},"unopened":[],"bounds":{"document_bytes":16777216,"sheet_cells":100000,"rows_first":2000,"rows_last":500,"rows_between":2000,"halvings":0,"cell_chars":16384,"cell_head_chars":4096},"cells_cut":0,"cells_raw":0,"read":"whole","date_system":"1900"}

{"sheet":"Sheet1","index":0,"n_rows":13,"n_cols":9,"rows_kept":13,"cut":false,"hidden":false,"merged":[]}
["PERFORMANCE AGAINST TARGET"]
[]
["Products","Sales","Target"]
["A",{"$f":"RANDBETWEEN(200,1000)","v":415},{"$f":"B4*RANDBETWEEN(80,120)/100","v":373.5},{"$f":"IF(B4>C4,\"J\",\"L\")","v":"J"},null,null,"SUMMARY",null,{"$f":"IF(B4>C4,\"Above Target\",\"Below Target\")","v":"Above Target"}]
["B",{"$f":"RANDBETWEEN(200,1000)","v":807},{"$f":"B5*RANDBETWEEN(80,120)/100","v":968.4},"L",null,null,"J",{"$f":"COUNTIF(D4:D13,\"J\")","v":2},"Below Target"]
["C",902,947.1,"L",null,null,"L",{"$f":"COUNTIF(D5:D14,\"L\")","v":8},"Below Target"]
["D",708,644.28,"J",null,null,null,null,"Above Target"]
["E",250,272.5,"L",null,null,null,null,"Below Target"]
["F",596,643.67999999999995,"L",null,null,null,null,"Below Target"]
["G",680,741.2,"L",null,null,null,null,"Below Target"]
["H",700,714,"L",null,null,null,null,"Below Target"]
["I",863,880.26,"L",null,null,null,null,"Below Target"]
["K",558,569.16,"L",null,null,null,null,"Below Target"]

{"sheet":"Sheet2","index":1,"n_rows":3,"n_cols":2,"rows_kept":3,"cut":false,"hidden":false,"merged":[]}
["WINGDINGS FONT","OTHER FONTS"]
["J","J"]
["L","L"]